fUST/lending_fUST_20250905
["ID","MTS","AMOUNT","RATE_DAILY","PERIOD"]
[383603814,1757024849259,-232.93421481,0.00015791,2]
[383603815,1757024849287,-39.52873821,0.00015791,2]
[383603828,1757025032712,-300.0,0.0001535,2]
[383603829,1757025032723,-1496.78135078,0.00015351,2]
[383603830,1757025032743,-440.0,0.00015351,2]
[383603833,1757025032754,-63.21864922,0.00015351,2]
[383603834,1757025032762,-216.81411449,0.00015351,2]
[383603837,1757025032772,-1783.18588551,0.00015351,2]
[383603839,1757025032781,-2000.0,0.00015351,2]
[383603841,1757025032791,-2000.0,0.00015351,2]
[383603845,1757025032801,-505.392,0.00015351,2]
[383603846,1757025032810,-203.15181488,0.00015351,2]
[383603847,1757025032819,-2000.0,0.00015351,2]
[383603848,1757025032828,-160.0,0.00015351,2]
[383603849,1757025032838,-530.40833076,0.0001579,2]
[383603851,1757025032847,-846.4110323,0.0001579,2]
[383603853,1757025032856,-232.93421481,0.0001579,2]
[383603855,1757025032865,-217.5338025,0.0001579,2]
[383603857,1757025032875,-417.15472785,0.0001579,2]
[383603859,1757025032884,-160.0,0.0001579,2]
[383603860,1757025032893,-480.0,0.00015794,2]
[383603862,1757025032902,-480.0,0.00015794,2]
[383603864,1757025032912,-480.0,0.00015794,2]
[383603866,1757025032921,-480.0,0.00015794,2]
[383603868,1757025032930,-480.0,0.00015794,2]
[383603870,1757025032939,-480.0,0.00015794,2]
[383603872,1757025032948,-480.0,0.00015794,2]
[383603874,1757025032959,-480.0,0.00015794,2]
[383603876,1757025032968,-480.0,0.00015794,2]
[383603878,1757025032978,-480.0,0.00015794,2]
[383603879,1757025032987,-480.0,0.00015794,2]
[383603881,1757025032996,-480.0,0.00015794,2]
[383603883,1757025033005,-480.0,0.00015794,2]
[383603885,1757025033015,-374.34833119,0.00015794,2]
[383603887,1757025033024,-480.0,0.00015794,2]
[383603889,1757025033033,-480.0,0.00015794,2]
[383603891,1757025033042,-480.0,0.00015794,2]
[383603893,1757025033051,-480.0,0.00015794,2]
[383603895,1757025033061,-480.0,0.00015794,2]
[383603897,1757025033071,-480.0,0.00015794,2]
[383603899,1757025033080,-480.0,0.00015794,2]
[383603901,1757025033089,-480.0,0.00015794,2]
[383603903,1757025033098,-480.0,0.00015794,2]
[383603905,1757025033109,-480.0,0.00015794,2]
[383603907,1757025033118,-155.37205047,0.00015794,2]
[383603909,1757025033127,-892.42,0.00015794,2]
[383603911,1757025033137,-480.0,0.00015794,2]
[383603913,1757025033147,-480.0,0.00015794,2]
[383603915,1757025033157,-480.0,0.00015795,2]
[383603917,1757025033167,-480.0,0.00015795,2]
[383603919,1757025033176,-480.0,0.00015795,2]
[383603921,1757025033186,-480.0,0.00015795,2]
[383603923,1757025033195,-480.0,0.00015795,2]
[383603925,1757025033204,-480.0,0.00015795,2]
[383603929,1757025033235,-480.0,0.00015795,2]
[383603931,1757025033248,-480.0,0.00015795,2]
[383603933,1757025033258,-480.0,0.00015795,2]
[383603935,1757025033267,-480.0,0.00015795,2]
[383603937,1757025033276,-480.0,0.00015795,2]
[383603939,1757025033286,-480.0,0.00015795,2]
[383603941,1757025033296,-480.0,0.00015795,2]
[383603943,1757025033305,-228.40694862,0.00015795,2]
[383603945,1757025033317,-251.59305138,0.00015795,2]
[383603948,1757025033327,-480.0,0.00015795,2]
[383603949,1757025033336,-480.0,0.00015795,2]
[383603951,1757025033346,-480.0,0.00015795,2]
[383603954,1757025033356,-539.75794929,0.00015795,2]
[383603956,1757025033366,-480.0,0.00015795,2]
[383603958,1757025033376,-479.07737043,0.00015795,2]
[383603960,1757025033386,-480.0,0.00015795,2]
[383603962,1757025033396,-334.42370012,0.00015795,2]
[383603964,1757025033405,-480.0,0.00015795,2]
[383603965,1757025033414,-480.0,0.00015795,2]
[383603967,1757025033424,-480.0,0.00015795,2]
[383603969,1757025033433,-480.0,0.00015795,2]
[383603971,1757025033442,-480.0,0.00015795,2]
[383603973,1757025033453,-480.0,0.00015795,2]
[383603975,1757025033463,-480.0,0.00015795,2]
[383603977,1757025033472,-480.0,0.00015795,2]
[383603980,1757025033482,-480.0,0.00015795,2]
[383603981,1757025033491,-480.0,0.00015795,2]
[383603983,1757025033500,-480.0,0.00015795,2]
[383603986,1757025033510,-480.0,0.00015795,2]
[383603988,1757025033520,-480.0,0.00015795,2]
[383603989,1757025033529,-480.0,0.00015795,2]
[383603991,1757025033539,-480.0,0.00015795,2]
[383603993,1757025033548,-185.31,0.00015795,2]
[383603994,1757025033558,-480.0,0.00015795,2]
[383603996,1757025033568,-480.0,0.00015795,2]
[383603998,1757025033577,-480.0,0.00015795,2]
[383604000,1757025033587,-307.04,0.00015795,2]
[383604002,1757025033596,-480.0,0.00015795,2]
[383604004,1757025033605,-480.0,0.00015795,2]
[383604006,1757025033615,-480.0,0.00015795,2]
[383604008,1757025033624,-480.0,0.00015795,2]
[383604010,1757025033634,-480.0,0.00015795,2]
[383604012,1757025033644,-480.0,0.00015795,2]
[383604014,1757025033653,-480.0,0.00015795,2]
[383604016,1757025033662,-480.0,0.00015795,2]
[383604018,1757025033672,-480.0,0.00015795,2]
[383604020,1757025033681,-480.0,0.00015795,2]
[383604022,1757025033691,-198.59,0.00015795,2]
[383604024,1757025033700,-544.46,0.00015795,2]
[383604026,1757025033710,-480.0,0.00015795,2]
[383604028,1757025033719,-480.0,0.00015795,2]
[383604030,1757025033729,-480.0,0.00015795,2]
[383604032,1757025033739,-480.0,0.00015795,2]
[383604034,1757025033748,-480.0,0.00015795,2]
[383604035,1757025033757,-480.0,0.00015795,2]
[383604037,1757025033766,-480.0,0.00015795,2]
[383604039,1757025033776,-480.0,0.00015795,2]
[383604041,1757025033785,-442.61,0.00015795,2]
[383604043,1757025033796,-480.0,0.00015795,2]
[383604045,1757025033807,-480.0,0.00015795,2]
[383604047,1757025033817,-480.0,0.00015795,2]
[383604049,1757025033827,-480.0,0.00015795,2]
[383604051,1757025033836,-238.18,0.00015795,2]
[383604053,1757025033845,-480.0,0.00015795,2]
[383604055,1757025033855,-480.0,0.00015795,2]
[383604057,1757025033864,-480.0,0.00015795,2]
[383604059,1757025033874,-480.0,0.00015795,2]
[383604061,1757025033883,-480.0,0.00015795,2]
[383604076,1757025034024,-480.0,0.00015795,2]
[383604078,1757025034034,-500.0,0.00015796,2]
[383604080,1757025034043,-480.0,0.00015796,2]
[383604082,1757025034052,-519.17730362,0.00015796,2]
[383604084,1757025034062,-480.0,0.00015796,2]
[383604086,1757025034071,-247.00210216,0.00015796,2]
[383604088,1757025034080,-480.0,0.00015796,2]
[383604090,1757025034090,-650.75,0.00015796,2]
[383604092,1757025034099,-480.0,0.00015796,2]
[383604094,1757025034108,-480.0,0.00015796,2]
[383604096,1757025034118,-230.72775952,0.00015796,2]
[383604098,1757025034128,-480.0,0.00015796,2]
[383604100,1757025034137,-480.0,0.00015796,2]
[383604102,1757025034147,-480.0,0.00015796,2]
[383604104,1757025034156,-480.0,0.00015796,2]
[383604106,1757025034166,-480.0,0.00015796,2]
[383604108,1757025034175,-480.0,0.00015796,2]
[383604110,1757025034186,-480.0,0.00015796,2]
[383604111,1757025034195,-480.0,0.00015796,2]
[383604113,1757025034204,-480.0,0.00015796,2]
[383604115,1757025034213,-480.0,0.00015796,2]
[383604117,1757025034223,-480.0,0.00015796,2]
[383604119,1757025034232,-480.0,0.00015796,2]
[383604121,1757025034243,-480.0,0.00015796,2]
[383604123,1757025034253,-480.0,0.00015796,2]
[383604125,1757025034263,-480.0,0.00015796,2]
[383604127,1757025034272,-480.0,0.00015796,2]
[383604129,1757025034282,-480.0,0.00015796,2]
[383604131,1757025034292,-480.0,0.00015796,2]
[383604133,1757025034301,-480.0,0.00015796,2]
[383604135,1757025034311,-480.0,0.00015796,2]
[383604137,1757025034321,-480.0,0.00015796,2]
[383604139,1757025034330,-480.0,0.00015796,2]
[383604141,1757025034339,-480.0,0.00015796,2]
[383604143,1757025034348,-480.0,0.00015796,2]
[383604145,1757025034357,-515.77808052,0.00015796,2]
[383604147,1757025034367,-528.69,0.00015796,2]
[383604149,1757025034377,-480.0,0.00015796,2]
[383604151,1757025034386,-480.0,0.00015796,2]
[383604153,1757025034396,-480.0,0.00015796,2]
[383604155,1757025034406,-415.8470589,0.00015796,2]
[383604157,1757025034415,-480.0,0.00015796,2]
[383604159,1757025034425,-480.0,0.00015796,2]
[383604161,1757025034434,-131.87641988,0.00015796,2]
[383604562,1757025038538,-480.0,0.00015794,2]
[383604564,1757025038548,-585.0,0.00015795,2]
[383604566,1757025038557,-201.0165305,0.00015795,2]
[383604568,1757025038567,-500.0,0.00015795,2]
[383604570,1757025038576,-348.12358012,0.00015796,2]
[383604572,1757025038585,-480.0,0.00015796,2]
[383604574,1757025038595,-480.0,0.00015796,2]
[383604576,1757025038604,-225.55988938,0.00015796,2]
[383604578,1757025038616,-254.44011062,0.00015796,2]
[383604580,1757025038625,-480.0,0.00015796,2]
[383604582,1757025038634,-480.0,0.00015796,2]
[383604584,1757025038643,-480.0,0.00015796,2]
[383604586,1757025038653,-480.0,0.00015796,2]
[383604588,1757025038662,-480.0,0.00015796,2]
[383604590,1757025038671,-480.0,0.00015796,2]
[383604592,1757025038681,-480.0,0.00015796,2]
[383604595,1757025038690,-480.0,0.00015796,2]
[383604597,1757025038700,-480.0,0.00015796,2]
[383604599,1757025038709,-482.92659992,0.00015796,2]
[383604601,1757025038719,-480.0,0.00015796,2]
[383604603,1757025038728,-480.0,0.00015796,2]
[383604606,1757025038738,-480.0,0.00015796,2]
[383604607,1757025038747,-480.0,0.00015796,2]
[383604609,1757025038756,-480.0,0.00015796,2]
[383604611,1757025038765,-215.80757805,0.00015796,2]
[383604613,1757025038776,-480.0,0.00015796,2]
[383604615,1757025038786,-480.0,0.00015796,2]
[383604617,1757025038795,-480.0,0.00015796,2]
[383604619,1757025038805,-480.0,0.00015796,2]
[383604621,1757025038814,-480.0,0.00015796,2]
[383604623,1757025038824,-480.0,0.00015796,2]
[383604625,1757025038833,-480.0,0.00015796,2]
[383604628,1757025038843,-480.0,0.00015796,2]
[383604630,1757025038852,-480.0,0.00015796,2]
[383604632,1757025038863,-480.0,0.00015796,2]
[383604633,1757025038873,-480.0,0.00015797,2]
[383604635,1757025038883,-480.0,0.00015797,2]
[383604637,1757025038892,-480.0,0.00015797,2]
[383604639,1757025038901,-480.0,0.00015797,2]
[383604641,1757025038911,-815.92953784,0.00015969,2]
[383604643,1757025038921,-1294.43257357,0.00015997,2]
[383605125,1757025043710,-480.0,0.00015794,2]
[383605127,1757025043719,-154.9073876,0.00015997,2]
[383605129,1757025043729,-480.0,0.00016068,2]
[383605132,1757025043738,-480.0,0.00016068,2]
[383605135,1757025043748,-200.0,0.00016068,2]
[383605138,1757025043757,-480.0,0.00016068,2]
[383605141,1757025043766,-480.0,0.00016068,2]
[383605144,1757025043775,-480.0,0.00016068,2]
[383605147,1757025043784,-480.0,0.00016068,2]
[383605149,1757025043794,-480.0,0.00016068,2]
[383605151,1757025043803,-480.0,0.00016068,2]
[383605153,1757025043812,-480.0,0.00016068,2]
[383605155,1757025043821,-480.0,0.00016068,2]
[383605157,1757025043831,-480.0,0.00016068,2]
[383605159,1757025043840,-480.0,0.00016068,2]
[383605161,1757025043850,-480.0,0.00016068,2]
[383605163,1757025043859,-892.42,0.00016068,2]
[383605165,1757025043869,-480.0,0.00016068,2]
[383605167,1757025043879,-480.0,0.00016068,2]
[383605169,1757025043888,-480.0,0.00016068,2]
[383605171,1757025043897,-232.25803472,0.00016069,2]
[383605173,1757025043907,-480.0,0.00016069,2]
[383605175,1757025043917,-480.0,0.00016069,2]
[383605177,1757025043926,-480.0,0.00016069,2]
[383605179,1757025043935,-480.0,0.00016069,2]
[383605181,1757025043945,-484.7145869,0.00016069,2]
[383605183,1757025043954,-480.0,0.00016069,2]
[383605185,1757025043965,-480.0,0.00016069,2]
[383605187,1757025043974,-480.0,0.00016069,2]
[383605190,1757025043983,-480.0,0.00016069,2]
[383605192,1757025043992,-480.0,0.00016069,2]
[383605194,1757025044002,-480.0,0.00016069,2]
[383605196,1757025044016,-480.0,0.00016069,2]
[383605197,1757025044027,-480.0,0.00016069,2]
[383605200,1757025044038,-480.0,0.00016069,2]
[383605202,1757025044049,-480.0,0.00016069,2]
[383605203,1757025044059,-480.0,0.00016069,2]
[383605206,1757025044069,-480.0,0.00016069,2]
[383605207,1757025044078,-480.0,0.00016069,2]
[383605210,1757025044087,-480.0,0.00016069,2]
[383605212,1757025044097,-480.0,0.00016069,2]
[383605214,1757025044109,-480.0,0.00016069,2]
[383605215,1757025044119,-480.0,0.00016069,2]
[383605217,1757025044130,-480.0,0.00016069,2]
[383605219,1757025044139,-480.0,0.00016069,2]
[383605221,1757025044148,-544.46,0.00016069,2]
[383605223,1757025044157,-480.0,0.00016069,2]
[383605225,1757025044167,-480.0,0.00016069,2]
[383605227,1757025044176,-480.0,0.00016069,2]
[383605229,1757025044186,-480.0,0.00016069,2]
[383605231,1757025044195,-480.0,0.00016069,2]
[383605233,1757025044204,-480.0,0.00016069,2]
[383605235,1757025044214,-480.0,0.00016069,2]
[383605237,1757025044223,-480.0,0.00016069,2]
[383605239,1757025044232,-480.0,0.00016069,2]
[383605241,1757025044243,-480.0,0.00016069,2]
[383605243,1757025044254,-480.0,0.00016069,2]
[383605245,1757025044263,-480.0,0.00016069,2]
[383605247,1757025044272,-480.0,0.00016069,2]
[383605249,1757025044282,-480.0,0.00016069,2]
[383605251,1757025044291,-480.0,0.00016069,2]
[383605253,1757025044300,-585.0,0.00016069,2]
[383605255,1757025044309,-500.0,0.0001607,2]
[383605257,1757025044318,-489.58,0.0001607,2]
[383605259,1757025044328,-480.0,0.0001607,2]
[383605261,1757025044337,-480.0,0.0001607,2]
[383605263,1757025044347,-466.72609868,0.0001607,2]
[383605265,1757025044357,-480.0,0.0001607,2]
[383605267,1757025044366,-480.0,0.0001607,2]
[383605269,1757025044376,-480.0,0.0001607,2]
[383605271,1757025044386,-505.54,0.0001607,2]
[383605273,1757025044396,-480.0,0.0001607,2]
[383605275,1757025044406,-480.0,0.0001607,2]
[383605277,1757025044415,-480.0,0.0001607,2]
[383605279,1757025044424,-480.0,0.0001607,2]
[383605281,1757025044434,-480.0,0.0001607,2]
[383605283,1757025044443,-480.0,0.0001607,2]
[383605285,1757025044452,-549.55,0.0001607,2]
[383605287,1757025044462,-516.35,0.0001607,2]
[383605289,1757025044471,-480.0,0.0001607,2]
[383605291,1757025044480,-480.0,0.0001607,2]
[383605293,1757025044490,-281.52570973,0.0001607,2]
[383605295,1757025044499,-480.0,0.00016071,2]
[383605297,1757025044509,-480.0,0.00016342,2]
[383605299,1757025044518,-480.0,0.00016342,2]
[383605301,1757025044527,-480.0,0.00016342,2]
[383605303,1757025044536,-480.0,0.00016342,2]
[383605305,1757025044546,-461.34905878,0.00016342,2]
[383605307,1757025044555,-480.0,0.00016342,2]
[383605309,1757025044564,-480.0,0.00016342,2]
[383605311,1757025044574,-480.0,0.00016342,2]
[383605313,1757025044583,-892.42,0.00016342,2]
[383605315,1757025044591,-480.0,0.00016342,2]
[383605317,1757025044600,-480.0,0.00016342,2]
[383605319,1757025044609,-281.01588521,0.00016342,2]
[383605321,1757025044619,-632.57083418,0.00016342,2]
[383605323,1757025044629,-632.57083418,0.00016342,2]
[383605325,1757025044638,-632.57083418,0.00016342,2]
[383605327,1757025044647,-632.57083418,0.00016342,2]
[383605329,1757025044656,-632.57083418,0.00016342,2]
[383605342,1757025044666,-632.57083418,0.00016342,2]
[383605344,1757025044795,-632.57083418,0.00016342,2]
[383605347,1757025044806,-632.57083418,0.00016342,2]
[383605348,1757025044815,-632.57083418,0.00016342,2]
[383605350,1757025044825,-632.57083418,0.00016342,2]
[383605352,1757025044834,-632.57083418,0.00016342,2]
[383605354,1757025044843,-632.57083418,0.00016342,2]
[383605356,1757025044852,-632.57083418,0.00016342,2]
[383605358,1757025044870,-480.0,0.00016342,2]
[383605360,1757025044881,-480.0,0.00016343,2]
[383605362,1757025044890,-480.0,0.00016343,2]
[383605364,1757025044900,-480.0,0.00016343,2]
[383605366,1757025044909,-480.0,0.00016343,2]
[383605368,1757025044919,-570.82,0.00016343,2]
[383605370,1757025044928,-480.0,0.00016343,2]
[383605372,1757025044938,-480.0,0.00016343,2]
[383605374,1757025044948,-379.22277158,0.00016343,2]
[383605376,1757025044958,-480.0,0.00016343,2]
[383605378,1757025044968,-480.0,0.00016343,2]
[383605380,1757025044977,-480.0,0.00016343,2]
[383605382,1757025044987,-480.0,0.00016343,2]
[383605384,1757025044997,-480.0,0.00016343,2]
[383605386,1757025045007,-203.63943266,0.00016343,2]
[383605388,1757025045016,-480.0,0.00016343,2]
[383605390,1757025045026,-307.5447912,0.00016343,2]
[383605392,1757025045036,-544.46,0.00016343,2]
[383605394,1757025045046,-480.0,0.00016343,2]
[383605396,1757025045055,-480.0,0.00016343,2]
[383605398,1757025045064,-480.0,0.00016343,2]
[383605400,1757025045074,-565.86,0.00016343,2]
[383605402,1757025045084,-480.0,0.00016343,2]
[383605404,1757025045094,-480.0,0.00016343,2]
[383605406,1757025045104,-480.0,0.00016343,2]
[383605408,1757025045115,-480.0,0.00016343,2]
[383605410,1757025045126,-151.0,0.00016343,2]
[383605412,1757025045136,-585.0,0.00016343,2]
[383605414,1757025045145,-500.0,0.00016344,2]
[383605416,1757025045155,-480.0,0.00016344,2]
[383605418,1757025045164,-480.0,0.00016344,2]
[383605420,1757025045174,-480.0,0.00016344,2]
[383605422,1757025045183,-480.0,0.00016344,2]
[383605424,1757025045193,-301.999999,0.00016344,2]
[383605426,1757025045202,-480.0,0.00016344,2]
[383605428,1757025045212,-480.0,0.00016345,2]
[383605430,1757025045222,-7056.58048925,0.00016362,2]
[383605432,1757025045231,-151.0,0.00016362,2]
[383605434,1757025045240,-151.0,0.00016362,2]
[383605436,1757025045250,-302.0,0.00016362,2]
[383605438,1757025045259,-157.0,0.00016362,2]
[383605440,1757025045269,-157.0,0.00016362,2]
[383605442,1757025045280,-302.0,0.00016362,2]
[383605444,1757025045289,-302.0,0.00016362,2]
[383605445,1757025045298,-302.0,0.00016362,2]
[383605447,1757025045308,-500.0,0.00016362,2]
[383605449,1757025045317,-3000.0,0.000164,2]
[383605451,1757025045327,-3000.0,0.000164,2]
[383605453,1757025045337,-500.0,0.00016438,2]
[383605455,1757025045346,-500.0,0.00016438,2]
[383605457,1757025045356,-500.0,0.00016438,2]
[383605459,1757025045365,-500.0,0.00016438,2]
[383605461,1757025045375,-192.92680687,0.00016438,2]
[383605463,1757025045384,-500.0,0.00016438,2]
[383605465,1757025045393,-151.0,0.00016438,2]
[383605467,1757025045403,-207.7679744,0.00016523,2]
[383605469,1757025045412,-500.0,0.00016523,2]
[383605471,1757025045422,-500.0,0.00016523,2]
[383605473,1757025045431,-500.0,0.00016526,2]
[383605475,1757025045441,-500.0,0.00016526,2]
[383605477,1757025045450,-500.0,0.00016526,2]
[383605479,1757025045459,-500.0,0.00016526,2]
[383605481,1757025045469,-1705.87232307,0.00016556,2]
[383605568,1757025046806,-277.4976503,0.00015794,2]
[383605611,1757025804700,1200.8299506,0.00027397,120]
[383605613,1757025866437,308.09929999,0.0001525,6]
[383605614,1757025940112,-333.40767059,0.00013699,2]
[383605615,1757025976873,158.71984996,0.00013599,2]
[383605616,1757026037181,-300.0,0.00013698,2]
[383605617,1757026037200,-64.96830461,0.00013698,2]
[383605618,1757026042090,-977.11352683,0.00013698,2]
[383605619,1757026051117,-157.91816856,0.00013698,2]
[383605620,1757026051138,-290.36431277,0.00013699,2]
[383605621,1757026148105,-300.0,0.00013698,2]
[383605622,1757026148127,-0.93418064,0.00013699,2]
[383605623,1757026148147,-2000.0,0.00013699,2]
[383605624,1757026148168,-2000.0,0.00013699,2]
[383605625,1757026148189,-2000.0,0.00013699,2]
[383605626,1757026148209,-1734.85825828,0.00013699,2]
[383605627,1757026156145,-179.49774172,0.00013699,2]
[383605628,1757026156169,-4.82884945,0.00014663,2]
[383605632,1757026231803,-1195.6349818,0.00014658,2]
[383605633,1757026231815,-183.32045555,0.00014663,2]
[383605634,1757026231826,-961.88661316,0.00015584,2]
[383605635,1757026231836,-160.0,0.00015656,2]
[383605636,1757026231846,-300.0,0.00015656,2]
[383605637,1757026231856,-1200.0,0.00015656,2]
[383605638,1757026231866,-160.0,0.00015658,2]
[383605639,1757026231875,-203.15181488,0.00015659,2]
[383605640,1757026231884,-530.40833076,0.00015659,2]
[383605641,1757026231894,-846.4110323,0.00015659,2]
[383605642,1757026231904,-217.5338025,0.00015659,2]
[383605643,1757026231913,-417.15472785,0.00015659,2]
[383605645,1757026231922,-160.0,0.00015659,2]
[383605646,1757026231931,-232.93421481,0.00015659,2]
[383605648,1757026231941,-160.0,0.0001566,2]
[383605649,1757026231950,-542.34676921,0.0001566,2]
[383605651,1757026231959,-480.0,0.0001566,2]
[383605653,1757026231969,-480.0,0.0001566,2]
[383605654,1757026231980,-480.0,0.0001566,2]
[383605655,1757026231989,-480.0,0.0001566,2]
[383605656,1757026232002,-480.0,0.0001566,2]
[383605658,1757026232011,-480.0,0.0001566,2]
[383605660,1757026232021,-480.0,0.0001566,2]
[383605662,1757026232030,-480.0,0.0001566,2]
[383605664,1757026232039,-480.0,0.0001566,2]
[383605666,1757026232049,-480.0,0.0001566,2]
[383605668,1757026232059,-480.0,0.0001566,2]
[383605669,1757026232068,-480.0,0.0001566,2]
[383605671,1757026232078,-480.0,0.0001566,2]
[383605673,1757026232087,-480.0,0.0001566,2]
[383605675,1757026232097,-480.0,0.0001566,2]
[383605677,1757026232106,-480.0,0.0001566,2]
[383605679,1757026232116,-480.0,0.0001566,2]
[383605680,1757026232125,-161.64,0.0001566,2]
[383605682,1757026232135,-480.0,0.0001566,2]
[383605684,1757026232145,-610.4,0.0001566,2]
[383605686,1757026232154,-284.63083601,0.0001566,2]
[383605688,1757026232164,-480.0,0.0001566,2]
[383605690,1757026232174,-578.23,0.0001566,2]
[383605692,1757026232183,-480.0,0.0001566,2]
[383605694,1757026232193,-480.0,0.0001566,2]
[383605696,1757026232203,-480.0,0.0001566,2]
[383605697,1757026232214,-480.0,0.0001566,2]
[383605699,1757026232225,-480.0,0.0001566,2]
[383605701,1757026232235,-480.0,0.0001566,2]
[383605702,1757026232245,-480.0,0.0001566,2]
[383605704,1757026232254,-480.0,0.0001566,2]
[383605706,1757026232264,-480.0,0.0001566,2]
[383605707,1757026232273,-480.0,0.0001566,2]
[383605708,1757026232282,-480.0,0.0001566,2]
[383605709,1757026232291,-202.5023497,0.0001566,2]
[383605710,1757026232301,-480.0,0.00015661,2]
[383605711,1757026232311,-338.22708933,0.00015661,2]
[383605712,1757026232333,-141.77291067,0.00015661,2]
[383605713,1757026232343,-525.29921339,0.00015661,2]
[383605714,1757026232353,-480.0,0.00015661,2]
[383605715,1757026232363,-480.0,0.00015661,2]
[383605716,1757026232372,-480.0,0.00015661,2]
[383605717,1757026232381,-480.0,0.00015661,2]
[383605718,1757026232391,-497.328733,0.00015661,2]
[383605719,1757026232400,-480.0,0.00015661,2]
[383605720,1757026232409,-480.0,0.00015661,2]
[383605721,1757026232420,-480.0,0.00015661,2]
[383605722,1757026232430,-480.0,0.00015661,2]
[383605723,1757026232439,-480.0,0.00015661,2]
[383605724,1757026232448,-480.0,0.00015661,2]
[383605725,1757026232458,-480.0,0.00015661,2]
[383605726,1757026232467,-228.55178177,0.00015661,2]
[383605727,1757026232478,-480.0,0.00015661,2]
[383605728,1757026232489,-480.0,0.00015661,2]
[383605729,1757026232500,-558.29,0.00015661,2]
[383605730,1757026232510,-480.0,0.00015661,2]
[383605731,1757026232520,-269.65,0.00015661,2]
[383605732,1757026232531,-480.0,0.00015661,2]
[383605733,1757026232542,-480.0,0.00015661,2]
[383605734,1757026232551,-480.0,0.00015661,2]
[383605735,1757026232562,-480.0,0.00015661,2]
[383605736,1757026232573,-480.0,0.00015661,2]
[383605737,1757026232585,-480.0,0.00015661,2]
[383605738,1757026232596,-480.0,0.00015661,2]
[383605739,1757026232606,-480.0,0.00015661,2]
[383605740,1757026232617,-480.0,0.00015661,2]
[383605741,1757026232628,-297.35000006,0.00015661,2]
[383605742,1757026232637,-548.22724172,0.00015661,2]
[383605743,1757026232647,-480.0,0.00015661,2]
[383605744,1757026232658,-480.0,0.00015661,2]
[383605745,1757026232667,-354.23,0.00015661,2]
[383605746,1757026232676,-480.0,0.00015661,2]
[383605747,1757026232685,-480.0,0.00015661,2]
[383605748,1757026232694,-480.0,0.00015661,2]
[383605749,1757026232703,-577.38413312,0.00015661,2]
[383605750,1757026232712,-480.0,0.00015661,2]
[383605751,1757026232721,-480.0,0.00015661,2]
[383605752,1757026232730,-480.0,0.00015661,2]
[383605753,1757026232739,-578.0,0.00015661,2]
[383605754,1757026232748,-480.0,0.00015661,2]
[383605755,1757026232757,-480.0,0.00015661,2]
[383605756,1757026232766,-480.0,0.00015661,2]
[383605757,1757026232775,-480.0,0.00015661,2]
[383605758,1757026232785,-480.0,0.00015661,2]
[383605759,1757026232794,-480.0,0.00015661,2]
[383605760,1757026232804,-213.01,0.00015661,2]
[383605761,1757026232813,-480.0,0.00015661,2]
[383605762,1757026232823,-480.0,0.00015661,2]